[Event "DVM U14w 2019"]
[Site "Neumuenster"]
[Date "2019.12.30"]
[Round "7"]
[White "Halas, Neele Zoe"]
[Black "Boutayeb, Malak"]
[Result "1-0"]
[ECO "C45"]
[WhiteElo "1076"]
[BlackElo "800"]
[Annotator "NA"]
[PlyCount "109"]
[EventDate "2019.12.27"]
[EventType "team-tourn"]
[EventRounds "7"]
[EventCountry "GER"]
[SourceTitle "playchess.com"]
[Source "ChessBase"]
[SourceQuality "1"]
[WhiteTeam "SG Leipzig"]
[BlackTeam "VSG 1880 Offenbach"]
[TimeControl "40/5400+30:1800+30"]

1. e4 {[%emt 0:00:00]} e5 {[%emt 0:00:00]} 2. Nf3 {[%emt 0:00:00]} Nc6 {[%emt 0:00:00]} 3. d4 {[%emt 0:00:00]} exd4 {[%emt 0:00:39]} 4. Nxd4 {[%emt 0:00:00]} Bc5 {[%emt 0:01:09]} 5. Be3 {[%emt 0:00:00]} Nxd4 {[%emt 0:02:59]} 6. Bxd4 {[%emt 0:00:24]} Bxd4 {[%emt 0:02:04]} 7. Qxd4 {[%emt 0:00:07]} Qf6 {[%emt 0:02:36]} 8. e5 {[%emt 0:03:05]} Qe7 {[%emt 0:03:49]} 9. Nd2 {[%emt 0:03:09]} d6 {[%emt 0:03:05]} 10. f4 {[%emt 0:00:40]} c5 {[%emt 0:03:01]} 11. Qxd6 {[%emt 0:00:28]} Qxd6 {[%emt 0:01:53]} 12. exd6 {[%emt 0:00:10]} Be6 {[%emt 0:02:25]} 13. Bb5+ {[%emt 0:00:27]} Bd7 {[%emt 0:00:37]} 14. Bxd7+ {[%emt 0:00:18]} Kxd7 {[%emt 0:00:30]} 15. Ne4 {[%emt 0:00:32]} Rc8 {[%emt 0:01:43]} 16. O-O-O {[%emt 0:00:23]} Nf6 {[%emt 0:01:11]} 17. Nxf6+ {[%emt 0:00:10]} gxf6 {[%emt 0:00:19]} 18. Rhe1 {[%emt 0:00:16]} Rce8 {[%emt 0:03:13]} 19. Rxe8 {[%emt 0:00:36]} Rxe8 {[%emt 0:00:13]} 20. Rd5 {[%emt 0:06:41]} Re2 {[%emt 0:07:22]} 21. Rd2 {[%emt 0:03:43]} Rxd2 {[%emt 0:00:58]} 22. Kxd2 {[%emt 0:00:06]} Kxd6 {[%emt 0:00:12]} 23. Kd3 {[%emt 0:00:46]} b5 {[%emt 0:01:02]} 24. Ke4 {[%emt 0:01:00]} a5 {[%emt 0:01:14]} 25. c3 {[%emt 0:01:18]} b4 {[%emt 0:05:25]} 26. c4 {[%emt 0:01:26]} a4 {[%emt 0:04:35]} 27. b3 {[%emt 0:03:21]} axb3 {[%emt 0:00:24]} 28. axb3 {[%emt 0:00:08]} Ke6 {[%emt 0:00:16]} 29. f5+ {[%emt 0:00:30]} Kd6 {[%emt 0:01:55]} 30. g4 {[%emt 0:00:36]} h6 {[%emt 0:00:48]} 31. Kf4 {[%emt 0:00:18]} Ke7 {[%emt 0:03:15]} 32. Kg3 {[%emt 0:01:14]} Kf8 {[%emt 0:01:14]} 33. h3 {[%emt 0:00:49]} Kg7 {[%emt 0:01:47]} 34. Kf4 {[%emt 0:00:17]} Kh7 {[%emt 0:03:04]} 35. Ke4 {[%emt 0:00:29]} h5 {[%emt 0:01:50]} 36. Kd5 {[%emt 0:01:44]} Kh6 {[%emt 0:02:26]} 37. Kxc5 {[%emt 0:00:23]} hxg4 {[%emt 0:00:31]} 38. hxg4 {[%emt 0:00:05]} Kg5 {[%emt 0:00:09]} 39. Kb6 {[%emt 0:00:06]} Kxg4 {[%emt 0:00:08]} 40. c5 {[%emt 0:00:05]} Kxf5 {[%emt 0:00:35]} 41. c6 {[%emt 0:30:07]} Ke6 {[%emt 0:30:03]} 42. c7 {[%emt 0:00:07]} Kd7 {[%emt 0:02:03]} 43. Kb7 {[%emt 0:00:08]} f5 {[%emt 0:00:54]} 44. c8=Q+ {[%emt 0:00:08]} Kd6 {[%emt 0:01:05]} 45. Qxf5 {[%emt 0:00:12]} Ke7 {[%emt 0:00:40]} 46. Qc5+ {[%emt 0:00:12]} Kd7 {[%emt 0:01:14]} 47. Qxb4 {[%emt 0:00:27]} f5 48. Qf4 Ke6 {[%emt 0:01:22]} 49. Kc6 {[%emt 0:00:49]} Kf6 {[%emt 0:00:23]} 50. Kd6 {[%emt 0:00:18]} Kg6 {[%emt 0:00:19]} 51. Ke6 {[%emt 0:00:28]} Kh5 {[%emt 0:00:31]} 52. Qxf5+ {[%emt 0:00:12]} Kh4 {[%emt 0:00:37]} 53. Qg6 {[%emt 0:01:18]} Kh3 54. Kf5 Kh4 {[%emt 0:01:07]} 55. Qg4# {[%emt 0:00:54] normal} 1-0

[Event "DVM U14w 2019"]
[Site "Neumuenster"]
[Date "2019.12.30"]
[Round "7"]
[White "Gietzelt, Magdalena"]
[Black "Siegel, Irene"]
[Result "0-1"]
[ECO "C50"]
[WhiteElo "841"]
[BlackElo "1004"]
[Annotator "NA"]
[PlyCount "58"]
[EventDate "2019.12.27"]
[EventType "team-tourn"]
[EventRounds "7"]
[EventCountry "GER"]
[SourceTitle "playchess.com"]
[Source "ChessBase"]
[SourceQuality "1"]
[WhiteTeam "Karlsruher SF"]
[BlackTeam "SG Porz"]
[TimeControl "40/5400+30:1800+30"]

1. e4 {[%emt 0:00:00]} e5 {[%emt 0:00:00]} 2. Nf3 {[%emt 0:00:00]} Nc6 {[%emt 0:00:00]} 3. Bc4 {[%emt 0:00:17]} Bc5 {[%emt 0:00:11]} 4. O-O {[%emt 0:01:16]} Nf6 {[%emt 0:00:13]} 5. d3 {[%emt 0:00:28]} d6 {[%emt 0:00:11]} 6. Bg5 {[%emt 0:00:32]} h6 {[%emt 0:00:24]} 7. Bh4 {[%emt 0:00:16]} Bg4 {[%emt 0:01:43]} 8. Nc3 {[%emt 0:00:20]} Nd4 {[%emt 0:00:35]} 9. Bb5+ {[%emt 0:00:32]} c6 {[%emt 0:00:25]} 10. Nd5 {[%emt 0:00:29]} cxb5 {[%emt 0:00:34]} 11. Nxf6+ {[%emt 0:03:24]} gxf6 {[%emt 0:00:10]} 12. c3 {[%emt 0:01:42]} Nxf3+ {[%emt 0:00:34]} 13. gxf3 {[%emt 0:00:20]} Bh3 {[%emt 0:00:23]} 14. Re1 {[%emt 0:00:38]} Rg8+ {[%emt 0:00:19]} 15. Bg3 {[%emt 0:00:22]} h5 {[%emt 0:00:24]} 16. Kh1 {[%emt 0:01:03]} h4 {[%emt 0:00:36]} 17. Bxh4 {[%emt 0:00:32]} Bg2+ {[%emt 0:00:14]} 18. Kg1 {[%emt 0:00:16]} Bxf3+ {[%emt 0:00:09]} 19. Kf1 {[%emt 0:06:48]} Bxd1 {[%emt 0:00:10]} 20. Raxd1 {[%emt 0:00:09]} Qd7 {[%emt 0:00:18]} 21. d4 {[%emt 0:00:32]} exd4 {[%emt 0:00:29]} 22. cxd4 {[%emt 0:00:16]} Bb4 {[%emt 0:00:17]} 23. Re3 {[%emt 0:00:20]} Qg4 {[%emt 0:00:34]} 24. Rc1 {[%emt 0:01:11]} Bd2 {[%emt 0:00:55]} 25. Rg3 {[%emt 0:01:13]} Qxh4 {[%emt 0:01:05]} 26. Rxg8+ {[%emt 0:00:26]} Ke7 {[%emt 0:00:07]} 27. Rxa8 {[%emt 0:00:17]} Bxc1 {[%emt 0:00:09]} 28. Rc8 {[%emt 0:00:21]} Qh3+ {[%emt 0:01:17]} 29. Kg1 {[%emt 0:01:08]} Qxc8 {normal} 0-1